[Event "1st Chessable Sunway Formentera 2022"]
[Site "Formentera Punta Prima"]
[Date "2022.05.08"]
[Round "9.13"]
[White "Bernard, Jacques"]
[Black "Garcia Martin, Marta"]
[Result "1/2-1/2"]
[ECO "C68"]
[WhiteElo "2122"]
[BlackElo "2326"]
[Annotator "TA"]
[PlyCount "148"]
[EventDate "2022.05.05"]
[EventType "swiss"]
[EventCountry "ESP"]
[SourceTitle "playchess.com"]
[Source "ChessBase"]
[SourceQuality "1"]
[TimeControl "40/5400+30:1800+30"]

{[%evp 17,148,0,0,-52,-44,-58,-63,-57,-56,-47,-47,-45,-49,-60,-68,-75,-28,-38,-28,-22,-20,-33,-28,-27,-33,-34,-35,-29,-19,-37,-29,-80,-59,-60,-41,-46,0,0,0,0,0,0,0,-39,-37,-37,-8,-8,0,0,0,-19,-20,-26,-19,-22,0,0,0,0,0,0,0,0,0,0,0,0,81,83,71,71,77,78,84,64,53,8,8,0,0,0,0,0,0,0,0,0,0,0,38,1,88,8,43,8,58,57,57,57,57,51,183,45,45,36,36,34,36,12,14,8,41,36,69,43,44,0,62,0,72,12,31,32,33,8,8,0,0,0,0,0,0]} 1. e4 {[%emt 0:00:04]} e5 {[%emt 0:04:19]} 2. Nf3 {[%emt 0:00:12]} Nc6 {[%emt 0:00:06]} 3. Bb5 {[%emt 0:00:34]} a6 {[%emt 0:00:06]} 4. Bxc6 {[%emt 0:00:07]} dxc6 {[%emt 0:00:07]} 5. O-O {[%emt 0:00:21]} Bd6 {[%emt 0:05:37]} 6. d4 {[%emt 0:01:21]} exd4 {[%emt 0:00:05]} 7. Qxd4 {[%emt 0:04:53]} f6 {[%emt 0:00:31]} 8. Nbd2 {[%emt 0:07:12]} Be6 {[%emt 0:01:52]} 9. Re1 {[%emt 0:15:24]} Ne7 {[%emt 0:12:39]} (9... Nh6 {feels hotter.} 10. e5 fxe5 11. Nxe5 O-O) 10. c4 {[%emt 0:18:34] [#] C68: Ruy Lopez: Exchange Variation, sidelines.} (10. e5 $11 fxe5 11. Nxe5) 10... c5 $146 {[%emt 0:13:08]} ({Predecessor:} 10... Ng6 11. b3 Be5 12. Qxd8+ Rxd8 13. Nxe5 Nxe5 14. Nf3 Nd3 15. Rd1 Nxc1 16. Raxc1 O-O 17. Nd4 Bc8 {1-0 (77) Rohackova,V-Maslikova,V Ivanka pri Dunaji 1999}) 11. Qc3 {[%emt 0:03:01]} Nc6 {[%emt 0:06:39] Against e5} 12. b3 {[%emt 0:15:25] Black is slightly better.} O-O {[%emt 0:08:05]} 13. Bb2 {[%emt 0:01:45]} Qe8 {[%emt 0:01:48]} 14. Nf1 {[%emt 0:03:14]} Qg6 {[%emt 0:01:58]} 15. Ng3 {[%emt 0:01:45]} Rfe8 {[%emt 0:00:27]} 16. Nh4 {[%emt 0:07:48]} Qf7 {[%emt 0:02:16]} ({Better is} 16... Qg4 $17 17. Nf3 b5) 17. Nhf5 $11 {[%emt 0:00:40]} Bf4 {[%emt 0:09:55]} 18. Qf3 {[%emt 0:03:23]} Be5 {[%emt 0:00:27]} 19. Bxe5 {[%emt 0:00:38]} fxe5 {[%emt 0:00:28]} 20. Rad1 {[%emt 0:03:06]} Kh8 {[%emt 0:03:14] Threatens to win with ...g6.} (20... a5 {is more complex.} 21. Qe3 Nd4 22. Qg5 Qf6) 21. Nh4 {[%emt 0:04:02]} Qxf3 {[%emt 0:01:06]} 22. Nxf3 {[%emt 0:00:06]} Bg4 {[%emt 0:00:02]} 23. Rd3 {[%emt 0:00:30]} Rad8 {[%emt 0:06:07]} 24. Red1 {[%emt 0:00:23]} (24. Rxd8 $11 Rxd8 25. Ng5) 24... Nd4 $17 {[%emt 0:00:48]} 25. Kf1 $1 {[%emt 0:00:33]} Rd6 {[%emt 0:06:40]} 26. Ne2 $1 {[%emt 0:01:04][%cal Rf3d4]} Nxf3 {[%emt 0:08:00]} (26... Bxf3 $15 27. gxf3 Rf8) 27. gxf3 $11 {[%emt 0:00:45]} Bxf3 {[%emt 0:00:05]} 28. Rxd6 {[%emt 0:00:17]} cxd6 {[%emt 0:00:03]} 29. Rxd6 {[%emt 0:00:19]} Bxe4 $15 {[%emt 0:00:04][%mdl 4096] Endgame KRB-KRN} 30. Rd7 {[%emt 0:02:00]} Bc6 {[%emt 0:00:23]} 31. Rc7 {[%emt 0:00:04]} h6 {[%emt 0:02:52][%cal Bh7h6,Bh6h5,Bh5h4,Bh4h3][%mdl 32]} 32. Nc3 {[%emt 0:00:35]} Rd8 {[%emt 0:01:23]} 33. Ke2 {[%emt 0:00:16] Prevents Rd2+.} Rd4 {[%emt 0:01:02]} 34. Re7 {[%emt 0:00:22]} Rh4 {[%emt 0:00:28]} 35. Rxe5 {[%emt 0:00:33]} Rxh2 {[%emt 0:00:05]} 36. Rxc5 {[%emt 0:01:01]} h5 {[%emt 0:00:52]} (36... Rh3 $5 {[%cal Rh3c3]} 37. Nd1 h5 $15) 37. Re5 {[%emt 0:02:06]} h4 {[%emt 0:01:44]} 38. Nd5 {[%emt 0:00:15]} Kh7 {[%emt 0:00:58]} 39. Ne7 {[%emt 0:00:00][%cal Re5h5]} Be8 {[%emt 0:00:00] Inhibits Rh5+.} 40. Kf3 {[%emt 0:00:00]} h3 {[%emt 0:00:00]} 41. Nd5 {[%emt 0:30:10]} Bc6 {[%emt 0:14:33]} 42. Re1 {[%emt 0:02:53]} Rg2 {[%emt 0:12:26] Prevents Rg1.} (42... Kg8 $11) 43. Rh1 $16 {[%emt 0:00:38]} Bd7 {[%emt 0:00:08] [#]} 44. Nf4 $1 {[%emt 0:00:32][%csl LRg2,LRh3]} Rg5 {[%emt 0:03:42] ...Bc6+ is the strong threat.} 45. Nxh3 {[%emt 0:01:17]} Bc6+ {[%emt 0:00:07]} 46. Kf4 {[%emt 0:00:04]} Ra5 {[%emt 0:02:03]} 47. Re1 {[%emt 0:02:07] White wants to play a4.} Rxa2 {[%emt 0:01:19]} 48. Re3 {[%emt 0:00:57]} a5 {[%emt 0:01:57]} 49. Ke5 {[%emt 0:00:41]} a4 {[%emt 0:01:33]} 50. bxa4 {[%emt 0:00:20]} Rxa4 {[%emt 0:00:05]} 51. c5 {[%emt 0:00:17]} Rc4 {[%emt 0:00:50]} 52. Ng5+ {[%emt 0:00:49]} Kg8 {[%emt 0:00:28]} 53. Ne6 {[%emt 0:00:08]} Bd7 {[%emt 0:00:37]} 54. Kd6 {[%emt 0:00:57]} (54. Nd8 $5 {[%cal Re5d6]}) 54... Bc8 {[%emt 0:00:08]} (54... Bxe6 $11 {keeps the balance.} 55. Rxe6 Kf8) 55. Re5 {[%emt 0:00:31]} ({White should play} 55. Ng5 $16 {[%cal Re3e8]} Kf8 56. Re5) 55... Kf7 {[%emt 0:00:55]} (55... Bxe6 $5 56. Rxe6 Kf8 $11) 56. Ng5+ {[%emt 0:00:29]} Kf6 {[%emt 0:00:12]} ({Black should try} 56... Kg6 $11) 57. Ne4+ $14 {[%emt 0:00:24]} Kg6 {[%emt 0:00:11]} 58. Kc7 {[%emt 0:00:26]} Bh3 {[%emt 0:00:42]} 59. f3 {[%emt 0:00:53]} ({But not} 59. Kxb7 {[#]} Rxe4 $1 60. Rxe4 Bg2 $11) 59... b5 {[%emt 0:00:39]} (59... Rb4 $14) 60. Nd6 {[%emt 0:00:30]} (60. Kb6 $18) 60... Rc3 {[%emt 0:00:24]} 61. Nxb5 {[%emt 0:00:18]} Rxf3 {[%emt 0:00:04]} 62. c6 {[%emt 0:00:30]} Kf6 {[%emt 0:01:09]} 63. Re8 {[%emt 0:00:05] And now Rf8+ would win.} Rb3 {[%emt 0:00:43]} 64. Nd6 {[%emt 0:00:24]} Rb1 {[%emt 0:00:33]} 65. Rf8+ {[%emt 0:00:27]} Ke5 {[%emt 0:00:23]} 66. Nf7+ {[%emt 0:00:31]} Kf6 {[%emt 0:00:36]} 67. Nd6+ {[%emt 0:00:21]} Ke5 {[%emt 0:00:31]} 68. Re8+ {[%emt 0:00:08]} (68. Rf2 $14) 68... Kd5 {[%emt 0:00:23]} (68... Kf6 $11) 69. Rh8 {[%emt 0:00:42] White is more active.} (69. Re3 $16 Bg4 70. Rd3+ Ke6 71. Nc4) 69... Bg2 {[%emt 0:00:37]} 70. Rh5+ {[%emt 0:00:38]} Ke6 {[%emt 0:00:06]} 71. Rg5 {[%emt 0:00:15]} Bxc6 {[%emt 0:00:37] The position is equal.} 72. Rg6+ {[%emt 0:00:36]} Kd5 $1 {[%emt 0:00:11]} 73. Rg5+ {[%emt 0:00:11]} Ke6 {[%emt 0:00:05]} 74. Rg6+ {[%emt 0:00:04]} Kd5 $1 {[%emt 0:00:04] Weighted Error Value: White=0.15 (very precise) /Black=0.17 (very precise)} 1/2-1/2

[Event "1st Chessable Sunway Formentera 2022"]
[Site "Formentera Punta Prima"]
[Date "2022.05.08"]
[Round "9.14"]
[White "Mouhamad, Joachim"]
[Black "Kovacs, Klara"]
[Result "1-0"]
[ECO "C11"]
[WhiteElo "2290"]
[BlackElo "2108"]
[Annotator "TA"]
[PlyCount "101"]
[EventDate "2022.05.05"]
[EventType "swiss"]
[EventCountry "ESP"]
[SourceTitle "playchess.com"]
[Source "ChessBase"]
[SourceQuality "1"]
[TimeControl "40/5400+30:1800+30"]

{[%evp 16,101,15,23,23,21,23,17,27,14,60,33,36,22,22,20,59,33,51,37,81,59,60,44,63,70,66,64,96,98,90,66,64,70,88,8,61,12,80,80,77,54,61,61,107,112,136,143,138,130,208,194,231,229,237,237,226,228,224,203,239,239,206,242,359,260,292,251,253,252,470,402,986,436,978,429,29984,29985,29984,29984,29981,902,777,842,770,770,662,654]} 1. e4 {[%emt 0:00:06]} e6 {[%emt 0:00:05]} 2. d4 {[%emt 0:00:32]} d5 {[%emt 0:00:04]} 3. Nc3 {[%emt 0:00:09]} Nf6 {[%emt 0:00:21]} 4. e5 {[%emt 0:00:08]} Nfd7 {[%emt 0:00:03]} 5. f4 {[%emt 0:00:09]} c5 {[%emt 0:00:04]} 6. Nf3 {[%emt 0:00:31]} Nc6 {[%emt 0:00:05]} 7. Be3 {[%emt 0:00:57]} Be7 {[%emt 0:00:05]} 8. Qd2 {[%emt 0:00:27]} O-O {[%emt 0:00:08]} 9. dxc5 {[%emt 0:00:19]} Qa5 {[%emt 0:00:05] C11: French: Classical System: 4 e5 and 4 Bg5 dxe4.} 10. a3 {[%emt 0:03:44]} Nxc5 {[%emt 0:03:54]} 11. Nd4 {[%emt 0:07:44] Threatens to win with Nxc6.} Qc7 {[%emt 0:07:56] [#] The position is equal.} 12. h4 $146 {[%emt 0:05:37]} ({Predecessor:} 12. Be2 f6 13. Ndb5 Qd8 14. exf6 Rxf6 15. O-O a6 16. Nd4 Qd6 17. Rad1 g6 18. Bg4 {1-0 (26) Kuybokarov,T (2523)-Clarke,B (2438) Sydney 2020}) 12... f6 {[%emt 0:11:57]} (12... a6 $11 {was preferrable.}) 13. exf6 {[%emt 0:00:15]} Bxf6 {[%emt 0:00:45]} 14. Nxc6 {[%emt 0:06:06]} Qxc6 {[%emt 0:00:37]} 15. O-O-O {[%emt 0:04:43]} (15. Bd4 {feels hotter.} Ne4 16. Nxe4 Bxd4 17. Qxd4 Rxf4 18. Bd3) 15... a6 {[%emt 0:07:28]} 16. Bd4 {[%emt 0:01:58]} Bd7 {[%emt 0:03:14]} 17. g3 {[%emt 0:01:32]} Kh8 {[%emt 0:01:14]} 18. h5 {[%emt 0:04:21] aiming for h6.} h6 {[%emt 0:05:06]} 19. Bg2 {[%emt 0:07:08]} Rac8 {[%emt 0:11:23]} 20. Bxf6 {[%emt 0:01:06]} Rxf6 {[%emt 0:00:44]} 21. Kb1 {[%emt 0:00:32]} Na4 {[%emt 0:02:54]} 22. Nxa4 {[%emt 0:00:23]} Qxa4 {[%emt 0:00:03]} 23. Rhe1 {[%emt 0:02:13]} b5 {[%emt 0:01:57]} 24. c3 {[%emt 0:09:33]} a5 {[%emt 0:02:34][%cal Ob5b4]} 25. Qc2 {[%emt 0:03:15]} (25. Rc1 $16) 25... Qc4 {[%emt 0:01:23]} ({Better is} 25... Qxc2+ $1 $11 26. Kxc2 b4 27. axb4 axb4) 26. Rd4 {[%emt 0:00:54]} (26. Bf1 $14 Qc5 27. Qd2) 26... Qc7 {[%emt 0:00:21]} (26... Qxd4 $1 $11 {remains equal.} 27. cxd4 Rxc2 28. Kxc2 g5) 27. Qd2 {[%emt 0:00:41]} Rb8 {[%emt 0:02:41]} 28. Re5 {[%emt 0:08:43]} Rff8 {[%emt 0:05:43]} 29. Bf1 {[%emt 0:14:05]} Rfc8 {[%emt 0:02:38] White leaves nothing to chance now.} (29... Qb6 $14) 30. Bd3 $16 {[%emt 0:03:54]} b4 {[%emt 0:00:27]} 31. cxb4 {[%emt 0:00:50]} (31. axb4 axb4 32. Rxb4 Rxb4 33. cxb4 Qa7 $11) 31... axb4 {[%emt 0:00:02]} 32. Rxb4 {[%emt 0:00:40]} Rxb4 {[%emt 0:00:07]} (32... Qc5 $16 33. Ka2 Rxb4 34. Qxb4 Qxb4 35. axb4 Kg8) 33. Qxb4 $18 {[%emt 0:00:48]} Rb8 {[%emt 0:06:40]} 34. Qd4 {[%emt 0:01:48]} ({But not} 34. Qd2 $6 Qc5 $16) 34... Qa5 {[%emt 0:00:45]} 35. Ka2 $1 {[%emt 0:03:04]} Qd2 {[%emt 0:01:40] ...Bb5 is the strong threat.} 36. Re2 $1 {[%emt 0:02:03]} Qd1 {[%emt 0:04:51]} 37. Qe3 {[%emt 0:06:17] Black must now prevent Bc2. Active counter play!} Ba4 {[%emt 0:11:39][%csl Gb8,Gd1][%cal Ra4b3] Inhibits Bc2.} 38. Bb1 {[%emt 0:00:07]} Bb3+ {[%emt 0:03:04]} 39. Ka1 {[%emt 0:00:16]} Bc4 {[%emt 0:00:21]} (39... d4 {was worth a try.} 40. Qe4 Kg8) 40. Qe5 {[%emt 0:00:00][%cal Re5b8]} Ra8 {[%emt 0:00:00]} 41. Re1 {[%emt 0:07:05] The board is on fire.} Qb3 {[%emt 0:03:10][%cal Oa8a3] ( -> ...Rxa3+!)} 42. Re3 $40 {[%emt 0:01:25][%mdl 128] White wants a kill.} Qb5 {[%emt 0:03:47]} (42... Qd1 $2 43. Qxe6 Bb5 44. Qg6 $18) (42... Qb6 43. f5 (43. Qxe6 Rxa3+ 44. Rxa3 Qxe6 $18) 43... d4) 43. Qxe6 {[%emt 0:07:05]} Rb8 {[%emt 0:05:15]} (43... d4 $142 44. Qg6 d3) 44. Qe5 {[%emt 0:01:18]} (44. b3 $142 {Qf5 would kill now.} Qc5 45. Qe8+ $3 {[%mdl 512]} Qf8 46. Qxf8+ Rxf8 47. bxc4) 44... Rf8 {[%emt 0:04:22]} (44... Kg8 $142 45. Qe6+ Kf8 46. Qd6+ Kg8) 45. Qd4 {[%emt 0:00:48]} (45. Qd6 $142 {[%cal Rd6f8]} Rb8 46. b3) 45... Qa4 {[%emt 0:00:56]} (45... Qa6 $18 46. Qc3 d4 47. Qxd4 Bf7) 46. Re7 {[%emt 0:00:40][%csl Ge7][%cal Rd4g7]} Rg8 {[%emt 0:00:07]} 47. Qf6 {[%emt 0:02:00]} Bd3 {[%emt 0:01:15] [#]} 48. Bxd3 $1 {[%emt 0:00:59]} Qd1+ {[%emt 0:00:14] White is clearly winning.} 49. Bb1 {[%emt 0:00:05]} Qxb1+ {[%emt 0:00:19]} 50. Kxb1 {[%emt 0:00:02] Intending Qg6 and mate.} gxf6 {[%emt 0:00:06]} 51. a4 {[%emt 0:00:38] Weighted Error Value: White=0.37/Black=0.49} 1-0

[Event "1st Chessable Sunway Formentera 2022"]
[Site "Formentera Punta Prima"]
[Date "2022.05.08"]
[Round "9.15"]
[White "Grutter, Tim"]
[Black "Buiza Prieto, Eihartze"]
[Result "1-0"]
[ECO "C42"]
[WhiteElo "2241"]
[BlackElo "2044"]
[Annotator "TA"]
[PlyCount "93"]
[EventDate "2022.05.05"]
[EventType "swiss"]
[EventCountry "ESP"]
[SourceTitle "playchess.com"]
[Source "ChessBase"]
[SourceQuality "1"]
[TimeControl "40/5400+30:1800+30"]

{[%evp 15,93,26,35,33,42,34,37,36,80,41,58,50,56,37,39,37,49,53,47,29,31,33,45,0,22,20,48,67,46,52,82,85,83,69,86,54,79,77,85,81,81,82,83,80,75,79,87,77,113,121,179,172,193,188,175,184,195,156,158,159,187,185,189,116,136,133,492,504,495,471,639,650,650,213,642,639,775,766,837,829]} 1. e4 {[%emt 0:00:03]} e5 {[%emt 0:00:09]} 2. Nf3 {[%emt 0:00:07]} Nf6 {[%emt 0:00:05]} 3. Nxe5 {[%emt 0:00:19]} d6 {[%emt 0:00:07]} 4. Nf3 {[%emt 0:00:06]} Nxe4 {[%emt 0:00:06]} 5. Bd3 {[%emt 0:00:37]} Nc5 {[%emt 0:07:20]} 6. Be2 {[%emt 0:00:05]} d5 {[%emt 0:00:53]} 7. d4 {[%emt 0:01:06]} Ne4 {[%emt 0:00:14]} 8. O-O {[%emt 0:00:14]} Bd6 {[%emt 0:00:36]} 9. c4 {[%emt 0:01:39] C42: Petroff Defence: 3 Nxe5 and unusual White 3rd moves.} c6 {[%emt 0:03:30]} 10. Nc3 {[%emt 0:00:23]} O-O {[%emt 0:03:08]} 11. Qb3 {[%emt 0:04:09] [#] White is slightly better.} Bc7 $146 {[%emt 0:07:57]} ({Predecessor:} 11... dxc4 12. Bxc4 Nxc3 13. bxc3 Qc7 14. Re1 Bf5 15. h3 b5 16. Bf1 Nd7 17. a4 a6 {1-0 (52) Shomoev,A (2563)-Gaydym,M (2337) Barnaul 2021}) 12. h3 {[%emt 0:22:00]} b6 {[%emt 0:10:47]} 13. cxd5 {[%emt 0:02:30]} Nxc3 {[%emt 0:03:24]} 14. bxc3 {[%emt 0:02:57]} cxd5 {[%emt 0:00:26]} 15. Ne5 {[%emt 0:08:03]} f6 {[%emt 0:08:51] [#]} 16. Bf3 $1 {[%emt 0:03:31]} Be6 {[%emt 0:01:31]} 17. Nd3 {[%emt 0:00:57]} Nc6 {[%emt 0:01:05]} 18. Bf4 {[%emt 0:14:46]} Na5 {[%emt 0:05:47]} 19. Qd1 {[%emt 0:00:47]} Rc8 {[%emt 0:02:15]} 20. Bg4 {[%emt 0:02:26]} Qd7 {[%emt 0:06:22]} 21. Bxe6+ {[%emt 0:01:29]} Qxe6 {[%emt 0:01:36]} 22. Re1 {[%emt 0:01:12]} Qf5 {[%emt 0:00:39] [#]} 23. g4 $1 {[%emt 0:02:34]} Qd7 {[%emt 0:01:21] [#]} 24. Qf3 {[%emt 0:01:14]} Nc4 {[%emt 0:05:00]} 25. Re2 {[%emt 0:02:57]} Bxf4 {[%emt 0:20:19]} 26. Nxf4 {[%emt 0:00:32]} Rfe8 {[%emt 0:00:13]} 27. Rxe8+ {[%emt 0:02:18]} Rxe8 {[%emt 0:00:07]} 28. Qxd5+ {[%emt 0:01:21]} Qxd5 {[%emt 0:00:07]} 29. Nxd5 $16 {[%emt 0:00:02][%mdl 4096] Endgame KRN-KRN} Kf7 {[%emt 0:00:48]} 30. a4 {[%emt 0:03:38]} Re6 {[%emt 0:03:40]} 31. Kg2 {[%emt 0:03:41]} Re2 {[%emt 0:02:18]} 32. Kf3 {[%emt 0:02:35]} Rc2 {[%emt 0:00:46]} (32... Rd2 $16) 33. Re1 $18 {[%emt 0:00:51] Re7+ is the strong threat.} Kf8 {[%emt 0:00:16]} 34. Re6 {[%emt 0:02:55]} Ra2 {[%emt 0:00:49]} 35. Rc6 {[%emt 0:01:05]} Rxa4 {[%emt 0:01:04]} 36. Rc7 {[%emt 0:04:29]} Nd6 {[%emt 0:00:56]} 37. Rd7 {[%emt 0:02:02]} Ne8 {[%emt 0:02:51]} 38. Ke4 {[%emt 0:01:30]} b5 {[%emt 0:00:24] [#]} 39. Kf5 {[%emt 0:01:29]} (39. Nf4 $1 $18) 39... Ra6 {[%emt 0:00:57]} 40. Nc7 {[%emt 0:00:00] White is more active.} Rd6 {[%emt 0:00:00][%mdl 8192] Black cannot hold the game after this.} (40... Nxc7 $16 {is more resistant.} 41. Rxc7 Ra2) 41. Ne6+ {[%emt 0:16:31]} Kg8 {[%emt 0:01:12]} 42. Re7 {[%emt 0:01:01]} g6+ {[%emt 0:07:16]} 43. Ke4 {[%emt 0:02:08]} Rb6 {[%emt 0:02:51]} 44. Rxe8+ {[%emt 0:01:47]} Kf7 {[%emt 0:00:06]} 45. Nc7 {[%emt 0:00:32] White is clearly winning.} Rc6 {[%emt 0:00:06]} 46. Rc8 {[%emt 0:00:36]} Rxc3 {[%emt 0:00:09] [#]} 47. Nxb5 $1 {[%emt 0:00:13] Weighted Error Value: White=0.08 (flawless) /Black=0.36} 1-0

[Event "1st Chessable Sunway Formentera 2022"]
[Site "Formentera Punta Prima"]
[Date "2022.05.08"]
[Round "9.16"]
[White "Perkampus, Laurin"]
[Black "Lever, Erwan"]
[Result "0-1"]
[ECO "E35"]
[WhiteElo "2061"]
[BlackElo "2209"]
[Annotator "TA"]
[PlyCount "106"]
[EventDate "2022.05.05"]
[EventType "swiss"]
[EventCountry "ESP"]
[SourceTitle "playchess.com"]
[Source "ChessBase"]
[SourceQuality "1"]
[TimeControl "40/5400+30:1800+30"]

{[%evp 24,106,0,0,11,8,36,33,48,44,47,45,45,48,50,50,75,66,64,64,62,58,56,56,56,56,56,56,56,52,52,52,55,10,52,22,58,44,106,107,137,0,0,-156,-156,-77,-77,-77,-77,-1141,-1134,-29969,-29972,-29968,-29973,-29972,-29973,-29972,-29974,-29955,-12369,-29977,-29977,-29978,-29977,-29980,-29980,-29980,-29981,-29981,-29981,-29981,-29982,-29984,-29982,-29981,-29983,-29984,-29985,-29985,-29986,-29986,-29987,-29987,-29988]} 1. d4 {[%emt 0:00:02]} Nf6 {[%emt 0:00:05]} 2. c4 {[%emt 0:00:03]} e6 {[%emt 0:00:07]} 3. Nc3 {[%emt 0:00:04]} Bb4 {[%emt 0:00:04]} 4. Qc2 {[%emt 0:00:04]} d5 {[%emt 0:00:09]} 5. cxd5 {[%emt 0:00:15]} exd5 {[%emt 0:00:08]} 6. Bg5 {[%emt 0:00:11]} h6 {[%emt 0:00:18]} 7. Bxf6 {[%emt 0:00:06]} Qxf6 {[%emt 0:00:33]} 8. a3 {[%emt 0:00:06]} Bxc3+ {[%emt 0:03:20]} 9. Qxc3 {[%emt 0:00:57]} c6 {[%emt 0:03:19]} 10. e3 {[%emt 0:02:24]} Bf5 {[%emt 0:04:56]} 11. Nf3 {[%emt 0:01:53]} Nd7 {[%emt 0:00:29]} 12. Be2 {[%emt 0:18:06]} O-O {[%emt 0:00:10]} 13. O-O {[%emt 0:01:53]} Rfe8 {[%emt 0:04:19] 13...Bg4 is the fancy move. E35: Nimzo-Indian: Classical: 4...d5 5 cxd5 exd5.} 14. Rfc1 {[%emt 0:06:57]} Re6 {[%emt 0:00:20]} 15. b4 {[%emt 0:03:00]} a6 {[%emt 0:00:09] White is slightly better.} 16. a4 {[%emt 0:02:24][%cal Ba3a4,Ba4b5][%mdl 32] [#]} Qd8 $146 {[%emt 0:09:41]} ({Predecessor:} 16... g5 17. b5 g4 18. Nd2 c5 19. dxc5 Qxc3 20. Rxc3 d4 21. Rcc1 d3 22. Bd1 axb5 {1-0 (43) Karpov,A (2780)-Polgar,J (2630) Monte Carlo 1995}) 17. b5 {[%emt 0:08:27]} axb5 {[%emt 0:05:05]} 18. axb5 {[%emt 0:05:37]} Rxa1 {[%emt 0:00:59]} 19. Qxa1 {[%emt 0:16:45]} Qb8 {[%emt 0:07:24]} 20. Nh4 {[%emt 0:10:27]} Be4 {[%emt 0:00:22]} 21. Bg4 {[%emt 0:01:57][%cal Be2g4,Bg4f5,Bf5d3][%mdl 32]} Rd6 {[%emt 0:01:53]} 22. bxc6 {[%emt 0:02:34]} bxc6 {[%emt 0:00:02]} 23. Nf5 {[%emt 0:09:37]} Bxf5 {[%emt 0:02:54]} 24. Bxf5 {[%emt 0:00:03]} Nf6 {[%emt 0:08:52]} 25. Rb1 {[%emt 0:00:26]} Qe8 {[%emt 0:00:12]} 26. Qa7 {[%emt 0:01:34]} g6 {[%emt 0:03:24]} 27. Bd3 {[%emt 0:02:07]} Rd8 {[%emt 0:00:02]} 28. g3 {[%emt 0:01:32]} h5 {[%emt 0:02:57]} 29. Qc7 {[%emt 0:02:02]} Ra8 {[%emt 0:13:53] Inhibits Ba6.} 30. Rc1 {[%emt 0:01:03]} Ra3 {[%emt 0:05:14]} (30... Rc8 $14 31. Qb7 Kg7) 31. Qxc6 $16 {[%emt 0:02:46]} Rxd3 {[%emt 0:02:40]} 32. Qxf6 {[%emt 0:00:03]} (32. Qa6 $16) 32... Rxe3 $11 {[%emt 0:00:07]} 33. fxe3 $2 {[%emt 0:00:57]} ({White should try} 33. Kg2 $11 Qe4+ 34. Kh3 Qg4+ 35. Kg2 Qe4+ 36. Kh3 Qg4+ 37. Kg2 Qe4+) 33... Qxe3+ $17 {[%emt 0:00:02]} 34. Kg2 {[%emt 0:00:04] [#] White wants to mate with Rc8+.} Qd2+ $1 {[%emt 0:05:56]} 35. Kh3 {[%emt 0:00:23] Rc8+ would kill now.} Qxc1 {[%emt 0:00:04][%mdl 4096] Endgame KQ-KQ} 36. Qd8+ $2 {[%emt 0:00:05][%mdl 8192] This move loses the game for White.} (36. Kh4 $17) 36... Kg7 $19 {[%emt 0:01:04] ( -> ...Qf1+)} 37. Qxd5 {[%emt 0:00:03]} Qf1+ {[%emt 0:00:06]} 38. Qg2 {[%emt 0:01:58]} Qf5+ {[%emt 0:02:31]} 39. g4 {[%emt 0:00:03]} Qd3+ {[%emt 0:00:59]} 40. Qg3 {[%emt 0:00:00]} hxg4+ {[%emt 0:00:00]} 41. Kh4 {[%emt 0:06:42]} Qxd4 {[%emt 0:03:29]} (41... Qxg3+ $142 42. Kxg3 f5 43. Kf4 Kf6 44. Ke3 Ke6 45. Kd3 Kd5 46. Ke3 g5 47. Kf2 Kxd4 48. Kg2 f4 49. Kf2 Kd3 50. Kg2 Ke2 51. h3 g3 52. h4 gxh4 53. Kh3 f3 54. Kg4 g2 55. Kf4 f2 56. Kf5 f1=Q+ 57. Ke4 g1=Q 58. Kd5 Qf5+ 59. Kc6 Qgc5+ 60. Kb7 Qfc8#) 42. Qxg4 {[%emt 0:00:45]} Qxg4+ {[%emt 0:00:20] Black mates.} 43. Kxg4 {[%emt 0:00:01] KPP-KP} Kh6 {[%emt 0:02:45]} 44. Kh4 {[%emt 0:01:47]} g5+ {[%emt 0:00:15]} 45. Kg4 {[%emt 0:02:54]} Kg6 {[%emt 0:00:08]} 46. Kg3 {[%emt 0:01:07]} Kf5 {[%emt 0:00:10]} 47. Kf3 {[%emt 0:00:07]} Ke5 {[%emt 0:02:47]} 48. Kg4 {[%emt 0:07:09]} f6 {[%emt 0:00:16][%cal Bf7f6,Bf6f5][%mdl 32]} 49. h4 {[%emt 0:01:26]} gxh4 {[%emt 0:00:13]} 50. Kxh4 {[%emt 0:00:01]} Kf4 {[%emt 0:00:07][%cal Be5f4,Bf4e3,Be3e2][%mdl 32]} 51. Kh3 {[%emt 0:00:13]} f5 {[%emt 0:00:09]} 52. Kg2 {[%emt 0:00:51] [#]} Ke3 $1 {[%emt 0:00:23]} 53. Kg1 {[%emt 0:00:12]} Ke2 {[%emt 0:00:06] Weighted Error Value: White=0.46/Black=0.18 (very precise)} 0-1